bitfinex-derivatives/quotes_BTCF0:USTF0_20251213
["timestamp","ask_amount","ask_price","bid_price","bid_amount"]
[1765585166764,0.13725384,90458.0,90457.0,0.12295287]
[1765585167063,0.13703193,90458.0,90457.0,0.12295287]
[1765585168264,0.09306757,90458.0,90457.0,0.07135]
[1765585168463,0.13767533,90458.0,90457.0,0.12439606]
[1765585169561,0.08223548,90458.0,90457.0,0.07135]
[1765585171359,0.05265548,90458.0,90457.0,0.07135]
[1765585172462,0.08174548,90458.0,90457.0,0.07135]
[1765585173969,0.08174548,90458.0,90455.0,0.3608]
[1765585173970,0.04057548,90458.0,90455.0,0.35715302]
[1765585174155,0.069295,90449.0,90448.0,0.00016583]
[1765585174356,0.09362048,90449.0,90448.0,0.00016583]
[1765585174565,0.06241,90448.0,90447.0,0.00481834]
[1765585174763,0.06241,90448.0,90427.0,0.38842]
[1765585174764,0.07361,90428.0,90427.0,0.38842]
[1765585174973,0.08256548,90428.0,90427.0,0.41601]
[1765585176061,0.08256548,90428.0,90427.0,0.41701]
[1765585176965,0.08956548,90428.0,90427.0,0.41801]
[1765585178164,0.11776308,90428.0,90427.0,0.002]
[1765585178864,0.11777411,90428.0,90427.0,0.002]
[1765585183959,0.11777411,90428.0,90427.0,0.02962]
[1765585184169,0.11777411,90428.0,90427.0,0.002]
[1765585191074,0.11793196,90428.0,90427.0,0.002]
[1765585192580,0.10079196,90428.0,90427.0,0.06031]
[1765585198085,0.10079196,90428.0,90427.0,0.03063]
[1765585201488,0.10079196,90428.0,90427.0,0.06031]
[1765585201971,0.10079196,90428.0,90427.0,0.03063]
[1765585206081,0.10079196,90428.0,90427.0,0.06031]
[1765585211376,0.10079196,90428.0,90427.0,0.002]
[1765585213085,0.10079196,90428.0,90427.0,0.03063]
[1765585218095,0.46159196,90428.0,90427.0,0.03063]
[1765585223298,0.0678887,90419.0,90418.0,0.00016583]
[1765585223499,0.0678899,90409.0,90408.0,0.07618]
[1765585223796,0.08132436,90409.0,90408.0,0.07618]
[1765585225001,0.08432436,90409.0,90408.0,0.07718]
[1765585225399,0.09132436,90409.0,90408.0,0.07818]
[1765585228497,0.09692886,90409.0,90408.0,0.07818]
[1765585247739,0.09692886,90409.0,90408.0,0.002]
[1765585247938,0.15666717,90409.0,90408.0,0.002]
[1765585248133,0.067891,90400.0,90399.0,0.00016583]
[1765585248334,0.09238536,90400.0,90399.0,0.00016583]
[1765585248536,0.09216345,90400.0,90399.0,0.00016583]
[1765585249138,0.10016345,90400.0,90399.0,0.00116583]
[1765585249639,0.10016345,90400.0,90399.0,0.00416583]
[1765585249843,0.09216345,90400.0,90399.0,0.00316583]
[1765585250056,0.09216345,90400.0,90399.0,0.00916583]
[1765585252750,0.0687124,90389.0,90388.0,0.41894]
[1765585252943,0.09320676,90389.0,90388.0,0.41894]
[1765585254444,0.10620676,90389.0,90388.0,0.41994]
[1765585255150,0.11820676,90389.0,90388.0,0.42094]
[1765585257455,0.1237749,90389.0,90388.0,0.42094]
[1765585260354,0.1237749,90389.0,90388.0,0.002]
[1765585261157,0.0687128,90385.0,90384.0,8.17e-05]
[1765585261452,0.09320716,90385.0,90384.0,8.17e-05]
[1765585261759,0.09320716,90385.0,90384.0,0.0292017]
[1765585262142,0.09320716,90385.0,90384.0,0.0582217]
[1765585262352,0.12120716,90385.0,90384.0,0.0602217]
[1765585264858,0.11014436,90385.0,90384.0,0.0602217]
[1765585268761,0.08565,90385.0,90384.0,0.0602217]
[1765585268956,0.11006112,90385.0,90384.0,0.0602217]
[1765585272067,0.11006112,90385.0,90384.0,0.0780417]
[1765585273367,0.11006112,90385.0,90384.0,0.0602217]
[1765585273763,0.11006112,90385.0,90384.0,0.0780417]
[1765585273968,0.11006112,90385.0,90384.0,0.0891047]
[1765585275071,0.11006112,90385.0,90384.0,0.0780417]
[1765585279174,0.11006112,90385.0,90384.0,0.0602217]
[1765585280071,0.11006112,90385.0,90384.0,0.0774217]
[1765585280465,0.11569587,90385.0,90384.0,0.0774217]
[1765585299191,0.11569587,90385.0,90384.0,0.0602217]
[1765585301494,0.11569587,90385.0,90384.0,0.0771617]
[1765585311698,0.11569587,90385.0,90384.0,0.0602217]
[1765585312196,0.11569587,90385.0,90384.0,0.0312017]
[1765585313197,0.11569587,90385.0,90384.0,0.0597417]
[1765585315299,0.11569587,90385.0,90384.0,0.0020817]
[1765585316395,0.11569587,90385.0,90379.0,0.36096592]
[1765585316396,0.0870535,90380.0,90379.0,0.00016592]
[1765585316593,0.0870535,90380.0,90368.0,0.05723]
[1765585316594,0.05848,90369.0,90368.0,0.05723]
[1765585316790,0.08289112,90369.0,90368.0,0.05723]
[1765585317392,0.05848,90368.0,90367.0,0.371865]
[1765585317702,0.08289112,90368.0,90367.0,0.371865]
[1765585318201,0.08272421,90368.0,90367.0,0.371865]
[1765585319099,0.08272421,90368.0,90367.0,0.429095]
[1765585319496,0.09372421,90368.0,90367.0,0.430095]
[1765585319906,0.10672421,90368.0,90367.0,0.431095]
[1765585322415,0.04824421,90368.0,90367.0,0.431095]
[1765585324715,0.07736421,90368.0,90367.0,0.431095]
[1765585325016,0.04824421,90368.0,90367.0,0.431095]
[1765585325718,0.04824421,90368.0,90367.0,0.070295]
[1765585325918,0.04824421,90368.0,90367.0,0.431095]
[1765585327322,0.04824421,90368.0,90367.0,0.552995]
[1765585329216,0.04824421,90368.0,90367.0,1.243915]
[1765585329416,0.04824421,90368.0,90367.0,0.883115]
[1765585329617,0.04824421,90368.0,90367.0,1.243915]
[1765585330018,0.07736421,90368.0,90367.0,1.243915]
[1765585330316,0.04824421,90368.0,90367.0,1.243915]
[1765585331026,0.04824421,90368.0,90367.0,0.883115]
[1765585331226,0.04824421,90368.0,90367.0,1.243915]
[1765585332124,0.04824421,90368.0,90367.0,0.883115]
[1765585332327,0.04824421,90368.0,90367.0,1.243915]
[1765585335134,0.024,90368.0,90367.0,1.243915]
[1765585335930,1.61e-06,90369.0,90367.0,1.243915]
[1765585336137,0.00016592,90377.0,90376.0,0.068294]
[1765585336335,0.00016592,90377.0,90376.0,0.429094]
[1765585337622,0.01316592,90377.0,90376.0,0.430094]
[1765585338723,0.02316592,90377.0,90376.0,0.431094]
[1765585339237,0.02316592,90377.0,90376.0,0.552994]
[1765585339428,0.02316592,90377.0,90376.0,0.192194]
[1765585339627,0.02316592,90377.0,90376.0,0.552994]
[1765585345831,0.3608,90392.0,90391.0,0.0694021]
[1765585345832,0.41793,90392.0,90391.0,0.0694021]
[1765585346033,0.44222923,90392.0,90391.0,0.0694021]
[1765585347039,0.44222923,90392.0,90391.0,0.0804021]
[1765585347246,0.44322923,90392.0,90391.0,0.0914021]
[1765585349944,0.02529923,90392.0,90391.0,0.0914021]
[1765585350938,0.05333923,90392.0,90391.0,0.0914021]
[1765585351541,0.02529923,90392.0,90391.0,0.0914021]
[1765585351848,0.001,90392.0,90391.0,0.0914021]
[1765585352052,0.02904,90392.0,90391.0,0.0914021]
[1765585353141,0.05813,90392.0,90391.0,0.0914021]
[1765585359354,0.05813,90392.0,90391.0,0.4522021]
[1765585363354,0.08241809,90392.0,90391.0,0.4522021]
[1765585363553,0.08241809,90392.0,90391.0,0.0914021]
[1765585363859,0.08241809,90392.0,90391.0,0.4522021]
[1765585367154,0.08241809,90392.0,90391.0,0.0914021]
[1765585367356,0.08241809,90392.0,90391.0,0.4522021]
[1765585373554,0.02528809,90392.0,90391.0,0.4522021]
[1765585373756,0.001,90392.0,90391.0,0.4522021]
[1765585374356,0.001,90392.0,90391.0,0.51186961]
[1765585374552,0.001,90392.0,90391.0,0.4522021]
[1765585374856,0.00016592,90401.0,90400.0,0.067861]
[1765585375057,0.0244856,90401.0,90400.0,1.119421]
[1765585377563,0.00016592,90401.0,90400.0,1.119421]
[1765585380170,0.00116592,90401.0,90400.0,1.119421]
[1765585380770,0.00116592,90401.0,90400.0,1.241321]
[1765585381763,0.05601592,90401.0,90400.0,1.241321]
[1765585381968,0.05601592,90401.0,90400.0,0.5395]
[1765585382170,0.0803192,90401.0,90400.0,0.50988]
[1765585382374,0.0803192,90401.0,90400.0,0.4827]
[1765585383985,0.0793192,90401.0,90400.0,0.4927]
[1765585384382,0.0793192,90401.0,90400.0,0.53088]
[1765585386786,0.0793192,90401.0,90400.0,0.04818]
[1765585389489,0.0793192,90401.0,90400.0,0.0778]
[1765585390190,0.0793192,90401.0,90400.0,0.0678]
[1765585390489,0.0793192,90401.0,90400.0,0.0768]
[1765585412701,0.0793192,90401.0,90400.0,0.13010961]
[1765585413803,0.0793192,90401.0,90400.0,0.12917511]
[1765585414806,0.0793192,90401.0,90400.0,0.0768]
[1765585415006,0.0793192,90401.0,90400.0,0.12901802]
[1765585415396,0.0793192,90401.0,90400.0,0.0768]
[1765585415798,0.0793192,90401.0,90400.0,0.12901802]
[1765585416108,0.0793192,90401.0,90400.0,0.12872501]
[1765585418208,0.0793192,90401.0,90400.0,0.12911881]
[1765585418508,0.0793192,90401.0,90400.0,0.0768]
[1765585418808,0.0793192,90401.0,90400.0,0.12911881]
[1765585419408,0.0793192,90401.0,90400.0,0.0768]
[1765585419704,0.0793192,90401.0,90400.0,0.13044396]
[1765585420108,0.0793192,90401.0,90400.0,0.0768]
[1765585420309,0.0793192,90401.0,90400.0,0.13044396]
[1765585420609,0.0793192,90401.0,90400.0,0.12854652]
[1765585421813,0.0793192,90401.0,90400.0,0.13036802]
[1765585423214,0.0793192,90401.0,90400.0,0.12923456]
[1765585424813,0.0793192,90401.0,90400.0,0.0768]
[1765585425112,0.0793192,90401.0,90400.0,0.129675]
[1765585425316,0.0793192,90401.0,90400.0,0.0768]
[1765585425614,0.0793192,90401.0,90400.0,0.12935746]
[1765585426217,0.0793192,90401.0,90400.0,0.0768]
[1765585426716,0.0793192,90401.0,90400.0,0.12935746]
[1765585427820,0.0793192,90401.0,90400.0,0.0768]
[1765585428119,0.0793192,90401.0,90400.0,0.12883944]
[1765585429620,0.0793192,90401.0,90400.0,0.12844223]
[1765585431122,0.0793192,90401.0,90400.0,0.0768]
[1765585431312,0.0793192,90401.0,90400.0,0.12939505]
[1765585431713,0.0244692,90401.0,90400.0,0.09358]
[1765585431913,0.0244692,90401.0,90400.0,0.1462967]
[1765585432122,0.0525892,90401.0,90400.0,0.1462985]
[1765585432421,0.0821992,90401.0,90400.0,0.1462985]
[1765585433025,0.0821992,90401.0,90400.0,0.14674809]
[1765585433626,0.0821992,90401.0,90400.0,0.12996809]
[1765585433817,0.0821992,90401.0,90400.0,0.0768]
[1765585434125,0.0821992,90401.0,90400.0,0.13036006]
[1765585435028,0.0821992,90401.0,90400.0,0.0768]
[1765585435230,0.0821992,90401.0,90400.0,0.12892118]
[1765585436721,0.0821992,90401.0,90400.0,0.12994147]
[1765585437930,0.0821992,90401.0,90400.0,0.1294571]
[1765585439119,0.0821992,90401.0,90400.0,0.12896997]
[1765585439632,0.0821992,90401.0,90400.0,0.0768]
[1765585440034,0.0821992,90401.0,90400.0,0.12896997]
[1765585440220,0.0821992,90401.0,90400.0,0.13018031]
[1765585442331,0.0821992,90401.0,90400.0,0.12994092]
[1765585443423,0.0821992,90401.0,90400.0,0.1298647]
[1765585444233,0.0821992,90401.0,90400.0,0.0768]
[1765585444433,0.0821992,90401.0,90400.0,0.13003151]
[1765585445334,0.0821992,90401.0,90400.0,0.0768]
[1765585445632,0.0821992,90401.0,90400.0,0.13021906]
[1765585447133,0.0821992,90401.0,90400.0,0.12976899]
[1765585448944,0.0821992,90401.0,90400.0,0.12896093]
[1765585449824,0.0821992,90401.0,90400.0,0.0768]
[1765585450230,0.0821992,90401.0,90400.0,0.12896093]
[1765585451737,0.08224467,90401.0,90400.0,0.0768]
[1765585451939,0.08224467,90401.0,90400.0,0.13024614]
[1765585453041,0.08224467,90401.0,90400.0,0.0768]
[1765585453428,0.08224467,90401.0,90400.0,0.12878083]
[1765585454141,0.08224467,90401.0,90400.0,0.13042798]
[1765585455451,0.08224467,90401.0,90400.0,0.12992947]
[1765585456551,0.08224467,90401.0,90400.0,0.12940702]
[1765585457956,0.08224467,90401.0,90400.0,0.12844464]
[1765585460447,0.08224467,90401.0,90400.0,0.12885791]
[1765585460955,0.08224467,90401.0,90400.0,0.0768]
[1765585461155,0.08224467,90401.0,90400.0,0.12885791]
[1765585461655,0.08224467,90401.0,90400.0,0.12860124]
[1765585462360,0.08224467,90401.0,90400.0,0.0768]
[1765585462548,0.08224467,90401.0,90400.0,0.12860124]
[1765585463851,0.08224467,90401.0,90400.0,0.12851019]
[1765585465056,0.08224467,90401.0,90400.0,0.12996626]
[1765585465658,0.08224467,90401.0,90400.0,0.13896626]
[1765585465957,0.05263467,90401.0,90400.0,0.13896626]
[1765585466151,0.05263467,90401.0,90400.0,0.13862079]
[1765585466757,0.05263467,90401.0,90400.0,0.0858]
[1765585467259,0.05263467,90401.0,90400.0,0.13862079]
[1765585467558,0.05263467,90401.0,90400.0,0.13789271]
[1765585468559,0.05263467,90401.0,90400.0,0.13926123]
[1765585469056,0.08115467,90401.0,90400.0,0.13926123]
[1765585469646,0.05263467,90401.0,90400.0,0.13926123]
[1765585469843,0.05263467,90401.0,90400.0,0.13816369]
[1765585469844,0.02451467,90401.0,90400.0,0.13816369]
[1765585471153,0.02451467,90401.0,90400.0,0.13796096]
[1765585472152,0.02451467,90401.0,90400.0,0.12860551]
[1765585472463,0.02551467,90401.0,90400.0,0.12860551]
[1765585472658,0.02551467,90401.0,90400.0,0.11760551]
[1765585473160,0.02551467,90401.0,90400.0,0.0658]
[1765585473357,0.08283467,90401.0,90400.0,0.0568]
[1765585478067,0.08283467,90401.0,90400.0,0.4176]
[1765585478366,0.08283467,90401.0,90400.0,0.46926863]
[1765585479067,0.08283467,90401.0,90400.0,0.4176]
[1765585479364,0.08283467,90401.0,90400.0,0.46926863]
[1765585480464,0.08283467,90401.0,90400.0,0.4176]
[1765585480667,0.08283467,90401.0,90400.0,0.47017168]
[1765585481666,0.08283467,90401.0,90400.0,0.4176]
[1765585481857,0.08283467,90401.0,90400.0,0.47108632]
[1765585483371,0.08283467,90401.0,90400.0,0.0568]
[1765585483671,0.08283467,90401.0,90400.0,0.4176]
[1765585483872,0.08283467,90401.0,90400.0,0.47049929]
[1765585484170,0.08283467,90401.0,90400.0,0.4176]
[1765585484874,0.08283467,90401.0,90400.0,0.46967489]
[1765585485263,0.08283467,90401.0,90400.0,0.4176]
[1765585485664,0.08283467,90401.0,90400.0,0.46967489]
[1765585486371,0.08283467,90401.0,90400.0,0.4176]
[1765585486576,0.08283467,90401.0,90400.0,0.46927134]
[1765585488166,0.08283467,90401.0,90400.0,0.4176]
[1765585488369,0.08283467,90401.0,90400.0,0.46928444]
[1765585489376,0.08283467,90401.0,90400.0,0.10848444]
[1765585489672,0.08283467,90401.0,90400.0,0.4176]
[1765585490473,0.08283467,90401.0,90400.0,0.0568]
[1765585490774,0.08283467,90401.0,90400.0,0.4176]
[1765585490972,0.08283467,90401.0,90400.0,0.46987538]
[1765585491165,0.08283467,90401.0,90400.0,0.4176]
[1765585491570,0.08283467,90401.0,90400.0,0.43528]
[1765585492470,0.08283467,90401.0,90400.0,0.48755538]
[1765585494170,0.08283467,90401.0,90400.0,0.43528]
[1765585494376,0.08283467,90401.0,90400.0,0.07448]
[1765585494579,0.08283467,90401.0,90400.0,0.43528]
[1765585500281,0.02551467,90401.0,90400.0,0.43528]
[1765585503591,0.08495467,90401.0,90400.0,0.43528]
[1765585505088,0.08495467,90401.0,90400.0,0.38798]
[1765585505286,0.08495467,90401.0,90400.0,0.41499]
[1765585512992,0.08495467,90401.0,90397.0,0.0110613]
[1765585512993,0.05944,90393.0,90392.0,0.187712]
[1765585513194,0.10576065,90393.0,90392.0,0.1219]
[1765585515197,0.16537793,90393.0,90392.0,0.1219]
[1765585516190,0.10576065,90393.0,90392.0,0.1219]
[1765585517389,0.05944,90383.0,90382.0,0.41571592]
[1765585517692,0.08378875,90383.0,90382.0,0.41571592]
[1765585519700,0.08378875,90383.0,90382.0,0.05491592]
[1765585529809,0.02434875,90383.0,90382.0,0.05491592]
[1765585530708,0.38882,90392.0,90391.0,0.11012084]
[1765585530903,0.44112384,90392.0,90391.0,0.11012084]
[1765585532103,0.44112384,90392.0,90391.0,0.10958278]
[1765585532302,0.44112384,90392.0,90391.0,0.12064488]
[1765585533402,0.44112384,90392.0,90391.0,0.11023377]
[1765585533604,0.44112384,90392.0,90391.0,0.11024045]
[1765585534515,0.44112384,90392.0,90391.0,0.05729]
[1765585534714,0.44112384,90392.0,90391.0,0.1107982]
[1765585535315,0.44112384,90392.0,90391.0,0.05729]
[1765585536118,0.44112384,90392.0,90391.0,0.1107982]
[1765585536309,0.44112384,90392.0,90391.0,0.05729]
[1765585536511,0.44112384,90392.0,90391.0,0.10970918]
[1765585537421,0.44112384,90392.0,90391.0,0.11032504]
[1765585538720,0.08032384,90392.0,90391.0,0.10904988]
[1765585539320,0.08032384,90392.0,90391.0,0.05729]
[1765585539520,0.08032384,90392.0,90391.0,0.10904988]
[1765585540626,0.08032384,90392.0,90391.0,0.05729]
[1765585540825,0.08032384,90392.0,90391.0,0.10943823]
[1765585541726,0.08032384,90392.0,90391.0,0.11077275]
[1765585542428,0.08032384,90392.0,90391.0,0.10926464]
[1765585543217,0.08032384,90392.0,90391.0,0.10971874]
[1765585544631,0.08032384,90392.0,90391.0,0.11091887]
[1765585544818,0.08032384,90392.0,90391.0,0.05729]
[1765585545127,0.08032384,90392.0,90391.0,0.11091887]
[1765585545620,0.05234384,90392.0,90391.0,0.11091887]
[1765585545819,0.05234384,90392.0,90391.0,0.05729]
[1765585546021,0.05234384,90392.0,90391.0,0.11055163]
[1765585546530,0.05234384,90392.0,90391.0,0.05729]
[1765585546826,0.05234384,90392.0,90391.0,0.10914775]
[1765585547030,0.08032384,90392.0,90391.0,0.10914775]
[1765585548430,0.08032384,90392.0,90391.0,0.10936656]
[1765585548621,0.08032384,90392.0,90391.0,0.47016656]
[1765585550220,0.02432384,90392.0,90391.0,0.41809]
[1765585550422,0.02432384,90392.0,90391.0,0.47104591]
[1765585550619,0.05234384,90392.0,90391.0,0.47104591]
[1765585550819,0.07991384,90392.0,90391.0,0.47103649]
[1765585551217,0.07991384,90392.0,90391.0,0.47109343]
[1765585551631,0.07991384,90392.0,90391.0,0.41809]
[1765585552532,0.07991384,90392.0,90391.0,0.47109343]
[1765585554432,0.07991384,90392.0,90391.0,0.47047363]
[1765585555632,0.07991384,90392.0,90391.0,0.47089131]
[1765585556835,0.07991384,90392.0,90391.0,0.46964431]
[1765585558328,0.07991384,90392.0,90391.0,0.47000729]
[1765585559733,0.07991384,90392.0,90391.0,0.10984938]
[1765585560419,0.07991384,90392.0,90391.0,0.05729]
[1765585560625,0.07991384,90392.0,90391.0,0.10984938]
[1765585563547,0.07991384,90392.0,90391.0,0.11042274]
[1765585564548,0.07991384,90392.0,90391.0,0.05729]
[1765585564743,0.07991384,90392.0,90391.0,0.11017448]
[1765585565151,0.07991384,90392.0,90391.0,0.05729]
[1765585565444,0.07991384,90392.0,90391.0,0.11017448]
[1765585566148,0.07991384,90392.0,90391.0,0.05729]
[1765585566351,0.07991384,90392.0,90391.0,0.11033851]
[1765585566544,0.07991384,90392.0,90391.0,0.05729]
[1765585570851,0.07991384,90392.0,90391.0,0.11006821]
[1765585571657,0.07991384,90392.0,90391.0,0.05729]
[1765585571956,0.07991384,90392.0,90391.0,0.10901908]
[1765585572556,0.07991384,90392.0,90391.0,0.05729]
[1765585573358,0.07991384,90392.0,90391.0,0.10901908]
[1765585574547,0.07991384,90392.0,90391.0,0.10931819]
[1765585574748,0.07991384,90392.0,90391.0,0.05729]
[1765585574949,0.07991384,90392.0,90391.0,0.10931819]
[1765585575748,0.07991384,90392.0,90391.0,0.10937753]
[1765585576656,0.07991384,90392.0,90391.0,0.11005456]
[1765585577653,0.07991384,90392.0,90391.0,0.05729]
[1765585578555,0.07991384,90392.0,90391.0,0.10915942]
[1765585580054,0.07991384,90392.0,90391.0,0.05729]
[1765585580560,0.07991384,90392.0,90391.0,0.10960767]
[1765585581165,0.07991384,90392.0,90391.0,0.05729]
[1765585581364,0.07991384,90392.0,90391.0,0.10930529]
[1765585581566,0.07991384,90392.0,90391.0,0.05729]
[1765585581767,0.07991384,90392.0,90391.0,0.10930529]
[1765585582463,0.07991384,90392.0,90391.0,0.11060789]
[1765585584067,0.07991384,90392.0,90391.0,0.05729]
[1765585584766,0.07991384,90392.0,90391.0,0.11077354]
[1765585584964,0.07991384,90392.0,90391.0,0.11007039]
[1765585586756,0.07991384,90392.0,90391.0,0.05729]
[1765585587667,0.07991384,90392.0,90391.0,0.11048967]
[1765585588369,0.07991384,90392.0,90391.0,0.05729]
[1765585588766,0.07991384,90392.0,90391.0,0.10988208]
[1765585589873,0.07991384,90392.0,90391.0,0.1095291]
[1765585590167,0.08006535,90392.0,90391.0,0.1095291]
[1765585593670,0.08006535,90392.0,90391.0,0.10998256]
[1765585594672,0.08006535,90392.0,90391.0,0.05729]
[1765585594872,0.08006535,90392.0,90391.0,0.10994422]
[1765585595375,0.08006535,90392.0,90382.0,0.00016592]
[1765585595376,0.05792,90383.0,90382.0,0.00016592]
[1765585595562,0.14212514,90383.0,90382.0,0.00016592]
[1765585595877,0.14212719,90383.0,90382.0,0.00016592]
[1765585596169,0.05792,90374.0,90373.0,0.0702442]
[1765585596373,0.08239535,90374.0,90373.0,0.12351696]
[1765585596771,0.08239535,90374.0,90373.0,0.0702442]
[1765585597565,0.08239535,90374.0,90373.0,0.12226376]
[1765585598771,0.08239535,90374.0,90373.0,0.0702442]
[1765585598977,0.08239535,90374.0,90373.0,0.12266183]
[1765585599764,0.08239535,90374.0,90373.0,0.12352177]
[1765585600665,0.08239535,90374.0,90373.0,0.0702442]
[1765585601073,0.08239535,90374.0,90373.0,0.12258521]
[1765585601667,0.08239535,90374.0,90373.0,0.0702442]
[1765585602776,0.08239535,90374.0,90373.0,0.12220569]
[1765585603373,0.08239535,90374.0,90373.0,0.0702442]
[1765585604180,0.08239535,90374.0,90373.0,0.12315261]
[1765585604367,0.08239535,90374.0,90373.0,0.0702442]
[1765585604978,0.08239535,90374.0,90373.0,0.12315404]
[1765585605779,0.08239535,90374.0,90373.0,0.12227585]
[1765585606874,0.08239535,90374.0,90373.0,0.12336648]
[1765585607580,0.08239535,90374.0,90373.0,0.0702442]
[1765585608686,0.08239535,90374.0,90373.0,0.12317176]
[1765585610282,0.08239535,90374.0,90373.0,0.0702442]
[1765585610478,0.08239535,90374.0,90373.0,0.12248589]
[1765585611178,0.08239535,90374.0,90373.0,0.0702442]
[1765585611377,0.08239535,90374.0,90373.0,0.12248589]
[1765585611784,0.08239535,90374.0,90373.0,0.12273621]
[1765585611978,0.08250085,90374.0,90373.0,0.12273621]
[1765585612578,0.08250085,90374.0,90373.0,0.0702442]
[1765585612779,0.08250085,90374.0,90373.0,0.12256323]
[1765585613792,0.08250085,90374.0,90373.0,0.0702442]
[1765585614093,0.08250219,90374.0,90373.0,0.0702442]
[1765585614688,0.08250219,90374.0,90373.0,0.12357138]
[1765585614890,0.08250219,90374.0,90373.0,0.12277074]
[1765585615993,0.08250219,90374.0,90373.0,0.0702442]
[1765585616694,0.08250219,90374.0,90373.0,0.12380439]
[1765585617290,0.08250219,90374.0,90373.0,0.0702442]
[1765585617796,0.08250219,90374.0,90373.0,0.12253504]
[1765585618096,0.08250219,90374.0,90373.0,0.48333504]
[1765585618302,0.08250219,90374.0,90373.0,0.4310442]
[1765585618487,0.08250219,90374.0,90373.0,0.48384747]
[1765585618887,0.08250219,90374.0,90373.0,0.4310442]
[1765585619094,0.08250219,90374.0,90373.0,0.48384747]
[1765585619998,0.08250219,90374.0,90373.0,0.48399665]
[1765585620391,0.08250219,90374.0,90373.0,0.4310442]
[1765585620700,0.08250219,90374.0,90373.0,0.48410895]
[1765585621199,0.08250219,90374.0,90373.0,0.4310442]
[1765585621399,0.08250219,90374.0,90373.0,0.48410895]
[1765585621694,0.08250219,90374.0,90367.0,0.1219]
[1765585621695,0.07019,90368.0,90367.0,0.17897]
[1765585621888,0.10583709,90368.0,90367.0,0.10951972]
[1765585622890,0.10583709,90368.0,90367.0,0.10944851]
[1765585624004,0.10583709,90368.0,90367.0,0.05707]
[1765585624298,0.10583709,90368.0,90367.0,0.10891682]
[1765585624801,0.10583709,90368.0,90367.0,0.05707]
[1765585625292,0.10583709,90368.0,90367.0,0.11031374]
[1765585626197,0.10583709,90368.0,90367.0,0.05707]
[1765585626498,0.10583709,90368.0,90367.0,0.10908249]
[1765585626801,0.10583709,90368.0,90367.0,0.05707]
[1765585627503,0.10583709,90368.0,90367.0,0.10908249]
[1765585628809,0.10583709,90368.0,90367.0,0.05707]
[1765585629803,0.10583709,90368.0,90367.0,0.11000647]
[1765585630896,0.10583709,90368.0,90367.0,0.05707]
[1765585631095,0.10583709,90368.0,90367.0,0.10969975]
[1765585631706,0.10583709,90368.0,90367.0,0.05707]
[1765585632302,0.10583709,90368.0,90367.0,0.10969975]
[1765585632605,0.10583709,90368.0,90367.0,0.10900174]
[1765585632808,0.10583709,90368.0,90367.0,0.05707]
[1765585633310,0.10583709,90368.0,90367.0,0.10900174]
[1765585634601,0.10583709,90368.0,90367.0,0.05707]
[1765585635002,0.10583709,90368.0,90367.0,0.10879595]
[1765585635705,0.10583709,90368.0,90367.0,0.05707]
[1765585635906,0.10583709,90368.0,90367.0,0.11019413]
[1765585636809,0.10583709,90368.0,90367.0,0.05707]
[1765585637009,0.10583709,90368.0,90367.0,0.10876809]
[1765585638297,0.10583709,90368.0,90367.0,0.05707]
[1765585638807,0.10583709,90368.0,90367.0,0.11015318]
[1765585639507,0.10583709,90368.0,90367.0,0.05707]
[1765585640699,0.10583709,90368.0,90367.0,0.10981998]
[1765585641709,0.10583709,90368.0,90367.0,0.05707]
[1765585641913,0.10284391,90368.0,90367.0,0.10962102]
[1765585642700,0.10284391,90368.0,90367.0,0.05707]
[1765585642904,0.10284391,90368.0,90367.0,0.10953888]
[1765585643810,0.08931391,90368.0,90367.0,0.10953888]
[1765585644012,0.08931391,90368.0,90367.0,0.05707]
[1765585644910,0.08931391,90368.0,90367.0,0.11040107]
[1765585646312,0.08931391,90368.0,90367.0,0.05707]
[1765585646715,0.08931391,90368.0,90367.0,0.10888848]
[1765585647508,0.08931391,90368.0,90367.0,0.05707]
[1765585647704,0.08931391,90368.0,90367.0,0.10990121]
[1765585647907,0.08931391,90368.0,90367.0,0.05707]
[1765585648411,0.08931391,90368.0,90367.0,0.10990121]
[1765585649111,0.08931391,90368.0,90367.0,0.11048532]
[1765585649509,0.08931391,90368.0,90367.0,0.10911622]
[1765585650116,0.08931391,90368.0,90367.0,0.05707]
[1765585650907,0.08931391,90368.0,90367.0,0.10911622]
[1765585652217,0.08931391,90368.0,90367.0,0.05707]
[1765585653318,0.08931391,90368.0,90367.0,0.10916456]
[1765585654016,0.08931391,90368.0,90367.0,0.11008339]
[1765585654404,0.08931391,90368.0,90367.0,0.1092505]
[1765585655009,0.08931391,90368.0,90367.0,0.05707]
[1765585655411,0.08931391,90368.0,90367.0,0.1092505]
[1765585656325,0.08931391,90368.0,90367.0,0.10930978]
[1765585656912,0.08931391,90368.0,90367.0,0.11022745]
[1765585659722,0.08931391,90368.0,90367.0,0.05707]
[1765585676843,0.0691853,90365.0,90364.0,0.00016592]
[1765585677041,0.0691863,90357.0,90356.0,0.05215789]
[1765585677232,0.07428,90352.0,90351.0,0.191767]
[1765585677433,0.08270219,90352.0,90351.0,0.069867]
[1765585677741,0.09376909,90352.0,90351.0,0.06987499]
[1765585677941,0.08270219,90352.0,90351.0,0.06987499]
[1765585678832,0.08270219,90352.0,90351.0,0.0588]
[1765585679841,0.08770219,90352.0,90351.0,0.0588]
[1765585680947,0.10493219,90352.0,90351.0,0.0588]
[1765585681148,0.08770219,90352.0,90351.0,0.0588]
[1765585687946,0.02958219,90352.0,90351.0,0.0588]
[1765585688453,0.09876909,90352.0,90351.0,0.0588]
[1765585697845,0.08770219,90352.0,90351.0,0.0588]
[1765585703657,0.05880219,90352.0,90351.0,0.0588]
[1765585703854,0.02958219,90352.0,90351.0,0.0588]
[1765585704056,0.05828219,90352.0,90351.0,0.0588]
[1765585704448,0.08670219,90352.0,90351.0,0.1807]
[1765585710366,0.08670219,90352.0,90351.0,0.0588]
[1765585711365,0.09711219,90352.0,90351.0,0.0588]
[1765585732468,0.07253,90352.0,90351.0,0.0588]
[1765585732669,0.09722414,90352.0,90351.0,0.0588]
[1765585732867,0.07253,90352.0,90351.0,0.0588]
[1765585733977,0.06212,90352.0,90351.0,0.0588]
[1765585734477,0.08681496,90352.0,90351.0,0.0588]
[1765585734677,0.06212,90352.0,90351.0,0.0588]
[1765585736874,0.08681734,90352.0,90351.0,0.0588]
[1765585742174,0.02969734,90352.0,90351.0,0.0588]
[1765585743181,0.005,90352.0,90351.0,0.0588]
[1765585745988,0.005,90352.0,90351.0,0.1807]
[1765585753305,0.005,90352.0,90351.0,0.5415]
[1765585758707,0.03474,90352.0,90351.0,0.1807]
[1765585758913,0.005,90352.0,90351.0,0.5415]
[1765585764514,0.03466,90352.0,90351.0,0.5415]
[1765585764714,0.06244,90352.0,90351.0,0.5415]
[1765585766911,0.06244,90352.0,90351.0,1.23238]